Workbook

Sheet Pipeline Input
B2: <Company Name>
B3: Detailed Sales Pipeline Management
B4: Company Confidential
B6: Instructions: Enter values into the white and yellow cells only.
B7: Opportunity Name | C7: Customer Contact | D7: Sales Rep | E7: Lead Source | F7: Sales Phase | G7: Sales Category | H7: Forecast Amount | I7: Forecast Close | J7: Year | K7: Probability of Sale | L7: Timeline | M7: Probability Forecast
B8: A. Datum Corporation | C8: Kim Abercrombie | D8: Anne Hellung-Larsen | E8: Partner | F8: Contact | G8: All | H8: $150,000 | I8: January | J8: 2017 | K8: $1 | L8: =IFERROR(DATE(tblData[[#This Row],[Year]],LOOKUP(tblData[[#This Row],[Forecast Close]],{"April",4;"August",8;"December",12;"February",2;"January",1;"July",7;"June",6;"March",3;"May",5;"November",11;"October",10;"September",9}),1),"") -> 4273600.00% | M8: =tblData[[#This Row],[Forecast Amount]]*tblData[[#This Row],[Probability of Sale]] -> $135,000
B9: Adventure Works | C9: Angela Barbariol | D9: Jan Kotas | E9: E-Mail | F9: Lead | G9: Beverages | H9: $145,200 | I9: February | J9: 2017 | K9: $1 | L9: =IFERROR(DATE(tblData[[#This Row],[Year]],LOOKUP(tblData[[#This Row],[Forecast Close]],{"April",4;"August",8;"December",12;"February",2;"January",1;"July",7;"June",6;"March",3;"May",5;"November",11;"October",10;"September",9}),1),"") -> 4276700.00% | M9: =tblData[[#This Row],[Forecast Amount]]*tblData[[#This Row],[Probability of Sale]] -> $116,160
B10: Alpine Ski House | C10: Gabriele Cannata | D10: Mariya Sergienko | E10: Partner | F10: Qualified Lead | G10: Dried Fruit & Nuts | H10: $162,500 | I10: March | J10: 2017 | K10: $0 | L10: =IFERROR(DATE(tblData[[#This Row],[Year]],LOOKUP(tblData[[#This Row],[Forecast Close]],{"April",4;"August",8;"December",12;"February",2;"January",1;"July",7;"June",6;"March",3;"May",5;"November",11;"October",10;"September",9}),1),"") -> 4279500.00% | M10: =tblData[[#This Row],[Forecast Amount]]*tblData[[#This Row],[Probability of Sale]] -> $40,625
B11: Baldwin Museum of Science | C11: Barbara S. Decker | D11: Michael Neipper | E11: Customer Reference | F11: Opportunity | G11: Baked Goods & Mixes | H11: $147,500 | I11: April | J11: 2017 | K11: $1 | L11: =IFERROR(DATE(tblData[[#This Row],[Year]],LOOKUP(tblData[[#This Row],[Forecast Close]],{"April",4;"August",8;"December",12;"February",2;"January",1;"July",7;"June",6;"March",3;"May",5;"November",11;"October",10;"September",9}),1),"") -> 4282600.00% | M11: =tblData[[#This Row],[Forecast Amount]]*tblData[[#This Row],[Probability of Sale]] -> $118,000
B12: Blue Yonder Airlines | C12: Susan W. Eaton | D12: Laura Giussani | E12: Web Event | F12: Executive Sponsorship | G12: Candy | H12: $148,000 | I12: May | J12: 2017 | K12: $0 | L12: =IFERROR(DATE(tblData[[#This Row],[Year]],LOOKUP(tblData[[#This Row],[Forecast Close]],{"April",4;"August",8;"December",12;"February",2;"January",1;"July",7;"June",6;"March",3;"May",5;"November",11;"October",10;"September",9}),1),"") -> 4285600.00% | M12: =tblData[[#This Row],[Forecast Amount]]*tblData[[#This Row],[Probability of Sale]] -> $44,400
B13: City Power & Light | C13: Kathie Flood | D13: Nancy Freehafer | E13: Conference | F13: Proposal Discussed | G13: Soups | H13: $175,000 | I13: June | J13: 2017 | K13: $0 | L13: =IFERROR(DATE(tblData[[#This Row],[Year]],LOOKUP(tblData[[#This Row],[Forecast Close]],{"April",4;"August",8;"December",12;"February",2;"January",1;"July",7;"June",6;"March",3;"May",5;"November",11;"October",10;"September",9}),1),"") -> 4288700.00% | M13: =tblData[[#This Row],[Forecast Amount]]*tblData[[#This Row],[Probability of Sale]] -> $17,500
B14: Coho Vineyard | C14: Janice Galvin | D14: Robert Zare | E14: E-Mail | F14: Written Proposal | G14: Sauces | H14: $149,000 | I14: July | J14: 2017 | K14: $1 | L14: =IFERROR(DATE(tblData[[#This Row],[Year]],LOOKUP(tblData[[#This Row],[Forecast Close]],{"April",4;"August",8;"December",12;"February",2;"January",1;"July",7;"June",6;"March",3;"May",5;"November",11;"October",10;"September",9}),1),"") -> 4291700.00% | M14: =tblData[[#This Row],[Forecast Amount]]*tblData[[#This Row],[Probability of Sale]] -> $89,400
B15: Coho Winery | C15: Adina Hagege | D15: Andrew Cencini | E15: Partner | F15: Contract | G15: Jams, Preserves | H15: $142,000 | I15: August | J15: 2017 | K15: $1 | L15: =IFERROR(DATE(tblData[[#This Row],[Year]],LOOKUP(tblData[[#This Row],[Forecast Close]],{"April",4;"August",8;"December",12;"February",2;"January",1;"July",7;"June",6;"March",3;"May",5;"November",11;"October",10;"September",9}),1),"") -> 4294800.00% | M15: =tblData[[#This Row],[Forecast Amount]]*tblData[[#This Row],[Probability of Sale]] -> $113,600
B16: Coho Vineyard & Winery | C16: Shu Ito | D16: Anne Hellung-Larsen | E16: Customer Reference | F16: Purchase Order | G16: Condiments | H16: $189,900 | I16: September | J16: 2017 | K16: $0 | L16: =IFERROR(DATE(tblData[[#This Row],[Year]],LOOKUP(tblData[[#This Row],[Forecast Close]],{"April",4;"August",8;"December",12;"February",2;"January",1;"July",7;"June",6;"March",3;"May",5;"November",11;"October",10;"September",9}),1),"") -> 4297900.00% | M16: =tblData[[#This Row],[Forecast Amount]]*tblData[[#This Row],[Probability of Sale]] -> $75,960
B17: Contoso, Ltd. | C17: David Jaffe | D17: Jan Kotas | E17: Conference | F17: Invoice | G17: Canned Meat | H17: $172,500 | I17: October | J17: 2017 | K17: $1 | L17: =IFERROR(DATE(tblData[[#This Row],[Year]],LOOKUP(tblData[[#This Row],[Forecast Close]],{"April",4;"August",8;"December",12;"February",2;"January",1;"July",7;"June",6;"March",3;"May",5;"November",11;"October",10;"September",9}),1),"") -> 4300900.00% | M17: =tblData[[#This Row],[Forecast Amount]]*tblData[[#This Row],[Probability of Sale]] -> $120,750
B18: Contoso Pharmaceuticals | C18: Sandeep Kaliyath | D18: Mariya Sergienko | E18: E-Mail | F18: Payment | G18: Pasta | H18: $163,500 | I18: November | J18: 2017 | K18: $1 | L18: =IFERROR(DATE(tblData[[#This Row],[Year]],LOOKUP(tblData[[#This Row],[Forecast Close]],{"April",4;"August",8;"December",12;"February",2;"January",1;"July",7;"June",6;"March",3;"May",5;"November",11;"October",10;"September",9}),1),"") -> 4304000.00% | M18: =tblData[[#This Row],[Forecast Amount]]*tblData[[#This Row],[Probability of Sale]] -> $147,150
B19: Consolidated Messenger | C19: Rebecca Laszlo | D19: Michael Neipper | E19: Customer Reference | F19: Acceptance | G19: Oil | H19: $155,500 | I19: December | J19: 2017 | K19: $0 | L19: =IFERROR(DATE(tblData[[#This Row],[Year]],LOOKUP(tblData[[#This Row],[Forecast Close]],{"April",4;"August",8;"December",12;"February",2;"January",1;"July",7;"June",6;"March",3;"May",5;"November",11;"October",10;"September",9}),1),"") -> 4307000.00% | M19: =tblData[[#This Row],[Forecast Amount]]*tblData[[#This Row],[Probability of Sale]] -> $46,650
B20: Fabrikam, Inc. | C20: Diane Margheim | D20: Laura Giussani | E20: Conference | F20: Executive Sponsorship | G20: Canned Fruit & Vegetables | H20: $166,000 | I20: January | J20: 2017 | K20: $0 | L20: =IFERROR(DATE(tblData[[#This Row],[Year]],LOOKUP(tblData[[#This Row],[Forecast Close]],{"April",4;"August",8;"December",12;"February",2;"January",1;"July",7;"June",6;"March",3;"May",5;"November",11;"October",10;"September",9}),1),"") -> 4273600.00% | M20: =tblData[[#This Row],[Forecast Amount]]*tblData[[#This Row],[Probability of Sale]] -> $49,800
B21: Fourth Coffee | C21: Paula Nartker | D21: Nancy Freehafer | E21: E-Mail | F21: Invoice | G21: Grains | H21: $180,000 | I21: March | J21: 2017 | K21: $0 | L21: =IFERROR(DATE(tblData[[#This Row],[Year]],LOOKUP(tblData[[#This Row],[Forecast Close]],{"April",4;"August",8;"December",12;"February",2;"January",1;"July",7;"June",6;"March",3;"May",5;"November",11;"October",10;"September",9}),1),"") -> 4279500.00% | M21: =tblData[[#This Row],[Forecast Amount]]*tblData[[#This Row],[Probability of Sale]] -> $54,000
B22: Graphic Design Institute | C22: Robert O'Hara | D22: Anne Hellung-Larsen | E22: Web Inquiry | F22: Contract | G22: All | H22: $140,000 | I22: May | J22: 2017 | K22: $0 | L22: =IFERROR(DATE(tblData[[#This Row],[Year]],LOOKUP(tblData[[#This Row],[Forecast Close]],{"April",4;"August",8;"December",12;"February",2;"January",1;"July",7;"June",6;"March",3;"May",5;"November",11;"October",10;"September",9}),1),"") -> 4285600.00% | M22: =tblData[[#This Row],[Forecast Amount]]*tblData[[#This Row],[Probability of Sale]] -> $28,000
B23: Humongous Insurance | C23: Carol Philips | D23: Jan Kotas | E23: Web Event | F23: Qualified Lead | G23: Beverages | H23: $155,000 | I23: June | J23: 2017 | K23: $1 | L23: =IFERROR(DATE(tblData[[#This Row],[Year]],LOOKUP(tblData[[#This Row],[Forecast Close]],{"April",4;"August",8;"December",12;"February",2;"January",1;"July",7;"June",6;"March",3;"May",5;"November",11;"October",10;"September",9}),1),"") -> 4288700.00% | M23: =tblData[[#This Row],[Forecast Amount]]*tblData[[#This Row],[Probability of Sale]] -> $124,000
B24: Litware, Inc. | C24: Kim Ralls | D24: Mariya Sergienko | E24: Web Inquiry | F24: Lead | G24: Dried Fruit & Nuts | H24: $173,200 | I24: October | J24: 2017 | K24: $1 | L24: =IFERROR(DATE(tblData[[#This Row],[Year]],LOOKUP(tblData[[#This Row],[Forecast Close]],{"April",4;"August",8;"December",12;"February",2;"January",1;"July",7;"June",6;"March",3;"May",5;"November",11;"October",10;"September",9}),1),"") -> 4300900.00% | M24: =tblData[[#This Row],[Forecast Amount]]*tblData[[#This Row],[Probability of Sale]] -> $103,920
B25: Lucerne Publishing | C25: Sharon Salavaria | D25: Michael Neipper | E25: Partner | F25: Contact | G25: Baked Goods & Mixes | H25: $146,500 | I25: December | J25: 2017 | K25: $1 | L25: =IFERROR(DATE(tblData[[#This Row],[Year]],LOOKUP(tblData[[#This Row],[Forecast Close]],{"April",4;"August",8;"December",12;"February",2;"January",1;"July",7;"June",6;"March",3;"May",5;"November",11;"October",10;"September",9}),1),"") -> 4307000.00% | M25: =tblData[[#This Row],[Forecast Amount]]*tblData[[#This Row],[Probability of Sale]] -> $102,550
B26: Margie's Travel | C26: Andy Teal | D26: Laura Giussani | E26: E-Mail | F26: Payment | G26: Candy | H26: $156,750 | I26: November | J26: 2017 | K26: $1 | L26: =IFERROR(DATE(tblData[[#This Row],[Year]],LOOKUP(tblData[[#This Row],[Forecast Close]],{"April",4;"August",8;"December",12;"February",2;"January",1;"July",7;"June",6;"March",3;"May",5;"November",11;"October",10;"September",9}),1),"") -> 4304000.00% | M26: =tblData[[#This Row],[Forecast Amount]]*tblData[[#This Row],[Probability of Sale]] -> $125,400
B27: Northwind Traders | C27: Sunil Uppal | D27: Nancy Freehafer | E27: Conference | F27: Written Proposal | G27: Soups | H27: $162,000 | I27: February | J27: 2017 | K27: $0 | L27: =IFERROR(DATE(tblData[[#This Row],[Year]],LOOKUP(tblData[[#This Row],[Forecast Close]],{"April",4;"August",8;"December",12;"February",2;"January",1;"July",7;"June",6;"March",3;"May",5;"November",11;"October",10;"September",9}),1),"") -> 4276700.00% | M27: =tblData[[#This Row],[Forecast Amount]]*tblData[[#This Row],[Probability of Sale]] -> $64,800
B28: Proseware, Inc. | C28: H. Brian Valentine | D28: Mariya Sergienko | E28: Customer Reference | F28: Opportunity | G28: Sauces | H28: $157,000 | I28: March | J28: 2017 | K28: $1 | L28: =IFERROR(DATE(tblData[[#This Row],[Year]],LOOKUP(tblData[[#This Row],[Forecast Close]],{"April",4;"August",8;"December",12;"February",2;"January",1;"July",7;"June",6;"March",3;"May",5;"November",11;"October",10;"September",9}),1),"") -> 4279500.00% | M28: =tblData[[#This Row],[Forecast Amount]]*tblData[[#This Row],[Probability of Sale]] -> $141,300
B29: School of Fine Art | C29: Robert Walters | D29: Michael Neipper | E29: Web Inquiry | F29: Executive Sponsorship | G29: Jams, Preserves | H29: $173,000 | I29: April | J29: 2017 | K29: $1 | L29: =IFERROR(DATE(tblData[[#This Row],[Year]],LOOKUP(tblData[[#This Row],[Forecast Close]],{"April",4;"August",8;"December",12;"February",2;"January",1;"July",7;"June",6;"March",3;"May",5;"November",11;"October",10;"September",9}),1),"") -> 4282600.00% | M29: =tblData[[#This Row],[Forecast Amount]]*tblData[[#This Row],[Probability of Sale]] -> $138,400
B30: Total | H30: =SUBTOTAL(109,tblData[Forecast Amount]) -> $3,510,050 | M30: =SUBTOTAL(109,tblData[Probability Forecast]) -> $1,997,365

Sheet Pipeline Calculations
B2: ='Pipeline Input'!B2 -> <Company Name>
B3: ='Pipeline Input'!B3 -> Detailed Sales Pipeline Management
B4: ='Pipeline Input'!B4 -> Company Confidential
B15: Forecast | E15: Forecast Close
B16: Opportunity Name | C16: Year | D16: Probability of Sale | E16: January | F16: February | G16: March | H16: April | I16: May | J16: June | K16: July | L16: August | M16: September | N16: October | O16: November | P16: December | Q16: Grand Total | R16: Trend
B17: A. Datum Corporation | C17: 2017 | D17: $1 | E17: $135,000 | F17: $0 | G17: $0 | H17: $0 | I17: $0 | J17: $0 | K17: $0 | L17: $0 | M17: $0 | N17: $0 | O17: $0 | P17: $0 | Q17: $135,000
B18: Adventure Works | C18: 2017 | D18: $1 | E18: $0 | F18: $116,160 | G18: $0 | H18: $0 | I18: $0 | J18: $0 | K18: $0 | L18: $0 | M18: $0 | N18: $0 | O18: $0 | P18: $0 | Q18: $116,160
B19: Alpine Ski House | C19: 2017 | D19: $0 | E19: $0 | F19: $0 | G19: $40,625 | H19: $0 | I19: $0 | J19: $0 | K19: $0 | L19: $0 | M19: $0 | N19: $0 | O19: $0 | P19: $0 | Q19: $40,625
B20: Baldwin Museum of Science | C20: 2017 | D20: $1 | E20: $0 | F20: $0 | G20: $0 | H20: $118,000 | I20: $0 | J20: $0 | K20: $0 | L20: $0 | M20: $0 | N20: $0 | O20: $0 | P20: $0 | Q20: $118,000
B21: Blue Yonder Airlines | C21: 2017 | D21: $0 | E21: $0 | F21: $0 | G21: $0 | H21: $0 | I21: $44,400 | J21: $0 | K21: $0 | L21: $0 | M21: $0 | N21: $0 | O21: $0 | P21: $0 | Q21: $44,400
B22: City Power & Light | C22: 2017 | D22: $0 | E22: $0 | F22: $0 | G22: $0 | H22: $0 | I22: $0 | J22: $17,500 | K22: $0 | L22: $0 | M22: $0 | N22: $0 | O22: $0 | P22: $0 | Q22: $17,500
B23: Coho Vineyard | C23: 2017 | D23: $1 | E23: $0 | F23: $0 | G23: $0 | H23: $0 | I23: $0 | J23: $0 | K23: $89,400 | L23: $0 | M23: $0 | N23: $0 | O23: $0 | P23: $0 | Q23: $89,400
B24: Coho Winery | C24: 2017 | D24: $1 | E24: $0 | F24: $0 | G24: $0 | H24: $0 | I24: $0 | J24: $0 | K24: $0 | L24: $113,600 | M24: $0 | N24: $0 | O24: $0 | P24: $0 | Q24: $113,600
B25: Consolidated Messenger | C25: 2017 | D25: $0 | E25: $0 | F25: $0 | G25: $0 | H25: $0 | I25: $0 | J25: $0 | K25: $0 | L25: $0 | M25: $0 | N25: $0 | O25: $0 | P25: $46,650 | Q25: $46,650
B26: Contoso Pharmaceuticals | C26: 2017 | D26: $1 | E26: $0 | F26: $0 | G26: $0 | H26: $0 | I26: $0 | J26: $0 | K26: $0 | L26: $0 | M26: $0 | N26: $0 | O26: $147,150 | P26: $0 | Q26: $147,150
B27: Contoso, Ltd. | C27: 2017 | D27: $1 | E27: $0 | F27: $0 | G27: $0 | H27: $0 | I27: $0 | J27: $0 | K27: $0 | L27: $0 | M27: $0 | N27: $120,750 | O27: $0 | P27: $0 | Q27: $120,750
B28: Fabrikam, Inc. | C28: 2017 | D28: $0 | E28: $49,800 | F28: $0 | G28: $0 | H28: $0 | I28: $0 | J28: $0 | K28: $0 | L28: $0 | M28: $0 | N28: $0 | O28: $0 | P28: $0 | Q28: $49,800
B29: Fourth Coffee | C29: 2017 | D29: $0 | E29: $0 | F29: $0 | G29: $54,000 | H29: $0 | I29: $0 | J29: $0 | K29: $0 | L29: $0 | M29: $0 | N29: $0 | O29: $0 | P29: $0 | Q29: $54,000
B30: Graphic Design Institute | C30: 2017 | D30: $0 | E30: $0 | F30: $0 | G30: $0 | H30: $0 | I30: $28,000 | J30: $0 | K30: $0 | L30: $0 | M30: $0 | N30: $0 | O30: $0 | P30: $0 | Q30: $28,000
B31: Humongous Insurance | C31: 2017 | D31: $1 | E31: $0 | F31: $0 | G31: $0 | H31: $0 | I31: $0 | J31: $124,000 | K31: $0 | L31: $0 | M31: $0 | N31: $0 | O31: $0 | P31: $0 | Q31: $124,000
B32: Litware, Inc. | C32: 2017 | D32: $1 | E32: $0 | F32: $0 | G32: $0 | H32: $0 | I32: $0 | J32: $0 | K32: $0 | L32: $0 | M32: $0 | N32: $103,920 | O32: $0 | P32: $0 | Q32: $103,920
B33: Lucerne Publishing | C33: 2017 | D33: $1 | E33: $0 | F33: $0 | G33: $0 | H33: $0 | I33: $0 | J33: $0 | K33: $0 | L33: $0 | M33: $0 | N33: $0 | O33: $0 | P33: $102,550 | Q33: $102,550
B34: Margie's Travel | C34: 2017 | D34: $1 | E34: $0 | F34: $0 | G34: $0 | H34: $0 | I34: $0 | J34: $0 | K34: $0 | L34: $0 | M34: $0 | N34: $0 | O34: $125,400 | P34: $0 | Q34: $125,400
B35: Northwind Traders | C35: 2017 | D35: $0 | E35: $0 | F35: $64,800 | G35: $0 | H35: $0 | I35: $0 | J35: $0 | K35: $0 | L35: $0 | M35: $0 | N35: $0 | O35: $0 | P35: $0 | Q35: $64,800
B36: Proseware, Inc. | C36: 2017 | D36: $1 | E36: $0 | F36: $0 | G36: $141,300 | H36: $0 | I36: $0 | J36: $0 | K36: $0 | L36: $0 | M36: $0 | N36: $0 | O36: $0 | P36: $0 | Q36: $141,300
B37: School of Fine Art | C37: 2017 | D37: $1 | E37: $0 | F37: $0 | G37: $0 | H37: $138,400 | I37: $0 | J37: $0 | K37: $0 | L37: $0 | M37: $0 | N37: $0 | O37: $0 | P37: $0 | Q37: $138,400
B38: Coho Vineyard & Winery | C38: 2017 | D38: $0 | E38: $0 | F38: $0 | G38: $0 | H38: $0 | I38: $0 | J38: $0 | K38: $0 | L38: $0 | M38: $75,960 | N38: $0 | O38: $0 | P38: $0 | Q38: $75,960
B39: Grand Total | E39: $379,200 | F39: $368,640 | G39: $724,275 | H39: $512,800 | I39: $144,000 | J39: $297,000 | K39: $89,400 | L39: $113,600 | M39: $75,960 | N39: $449,410 | O39: $544,425 | P39: $302,000 | Q39: $44,402,133

Sheet Pipeline Totals
B1: ='Pipeline Input'!B2&" - Monthly Forecast" -> <Company Name> - Monthly Forecast
B3: Month | C3: Probability Forecast | D3: Cumulative Total
B4: Jan | C4: $184,800 | D4: $184,800
B5: Feb | C5: $180,960 | D5: $365,760
B6: Mar | C6: $235,925 | D6: $601,685
B7: Apr | C7: $256,400 | D7: $858,085
B8: May | C8: $72,400 | D8: $930,485
B9: Jun | C9: $141,500 | D9: $1,071,985
B10: Jul | C10: $89,400 | D10: $1,161,385
B11: Aug | C11: $113,600 | D11: $1,274,985
B12: Sep | C12: $75,960 | D12: $1,350,945
B13: Oct | C13: $224,670 | D13: $1,575,615
B14: Nov | C14: $272,550 | D14: $1,848,165
B15: Dec | C15: $149,200 | D15: $1,997,365

Sheet Drop-down list data
A1: Sales Reps | C1: Lead Source | E1: Sales Category | G1: Phase | I1: Months
A2: Anne Hellung-Larsen | C2: Web Inquiry | E2: All | G2: Contact | I2: January
A3: Jan Kotas | C3: E-Mail | E3: Beverages | G3: Lead | I3: February
A4: Mariya Sergienko | C4: Partner | E4: Dried Fruit & Nuts | G4: Qualified Lead | I4: March
A5: Michael Neipper | C5: Customer Reference | E5: Baked Goods & Mixes | G5: Opportunity | I5: April
A6: Laura Giussani | C6: Web Event | E6: Candy | G6: Executive Sponsorship | I6: May
A7: Nancy Freehafer | C7: Conference | E7: Soups | G7: Proposal Discussed | I7: June
A8: Robert Zare | C8: E-Mail | E8: Sauces | G8: Written Proposal | I8: July
A9: Andrew Cencini | C9: Partner | E9: Jams, Preserves | G9: Contract | I9: August
C10: Customer Reference | E10: Condiments | G10: Purchase Order | I10: September
C11: Conference | E11: Canned Meat | G11: Invoice | I11: October
C12: E-Mail | E12: Pasta | G12: Payment | I12: November
C13: Customer Reference | E13: Dairy Products | G13: Acceptance | I13: December
C14: Conference | E14: Oil
C15: E-Mail | E15: Canned Fruit & Vegetables
C16: Web Inquiry | E16: Grains
C17: Web Event
C18: Web Inquiry
C19: Partner
C20: E-Mail
C21: Conference
C22: Customer Reference
C23: Web Inquiry
K25: Learn more:
K26: Excel tables
K27: Apply data validation to cells
